Workbook

Sheet Rekenblad
A1: ="Melding en berekening straatwerk" & MID('Tabel Tarieven'!K1,10,5) -> Melding en berekening straatwerk 2018 | M1: ="Versie "&MID('Tabel Tarieven'!K1,11,8) -> Versie 2018 v2
A2: volgens de Richtlijn Tarieven (graaf) werkzaamheden Telecom dd 12-03-2004. | L2: Datum: | M2: =NOW() -> 2018-01-23T09:49:59.730
A3: AANVRAGER: | B3: ………………………………. | E3: Adres: | F3: …………………………………………………………………… | K3: Contactpersoon: | M3: …………………………………
A4: NAAM PROJECT: | B4: ………………………………………………………………………………………………….. | H4: Ref.nr: | I4: ………………………………………………………………………………………………….. | K4: E-mail: | L4: …………..…………………………………
A5: PLAATS: | B5: ………………………………………………………………………………………………….. | K5: Telefoon: | M5: …………………………………
A6: GEMEENTE: | E6: adres: | F6: =IF($B$7>0.1,VLOOKUP(B7,'Gemeenten met categorie'!A3:D484,4),"") -> Postbus 93, 9460 AB GIETEN | L6: Mobiel: | M6: …………………………………
B7: 1 | D7: =IF($B$7>0.1,VLOOKUP($B$7,'Gemeenten met categorie'!A2:D493,3),"") -> 1
A8: Uitvoering:
A9: 1
A10: Gemeentelijke gegevens: | D10: Verzamelde informatie: | H10: Toegepast tarief | M10: Bedrag:
A11: Kontaktpersoon gem.: | B11: ……………………… | D11: Inkoopordernr.: | F11: Projektnr: | H11: =INDEX('Gemeenten met categorie'!D499:D504,A9,1) -> Tarief A: Herstel en onderhoud uitgevoerd door de gemeente | M11: Uitv.k | N11: =SUM(J38:J80) -> 0
A12: E-mail: | B12: ……………………… | D12: ……………… | F12: ……………. | M12: Onderh.k | N12: =SUM(K38:K80) -> 0
A13: telefoon: | B13: ……………………… | D13: Datum opbreking: | F13: ……………….. | M13: Deg.kst. | N13: =SUM(L38:L80) -> 0
A14: mobiel: | B14: ……………………… | D14: Datum herstel: | F14: ……………….. | M14: Beheer.k | N14: =SUM(M38:M80) -> 0
A15: Opdrachtnummer : | B15: ……………………… | D15: Deellevering: | F15: ……………….. | H15: =INDEX('Gemeenten met categorie'!D499:F504,A9,2) -> 0 | M15: Bomen/str | N15: =N28 -> 0
A16: In te vullen gegevens: | D16: Laatste levering: | F16: ……………….. | M16: Asfalt | N16: =N33 -> 0
A17: = Richtlijn tarief | D17: Uitvoerende aannemer: | F17: ………………..
A18: = Af te spreken projektprijs | F18: …………………
F19: ………………… | H19: Totaal kosten: | M19: =+SUM(N11:N17) -> 0
A20: OMSCHRIJVING STRAATWERK / BERMEN; | N20: =IF(ROUND(SUM(N38:N80),2)-ROUND(M19,2)<>0,"Fout in formulier","") -> 
A21: =+IF(AND(D25>0,D25<0.3),("invoer fout breedte tegels"),IF(AND(D26>0,D26<0.3),("invoer fout breedte tegels"),IF(AND(D27>0,D27<0.3),("invoer fout breedte tegels"),""))) ->  | C21: Sleuf | I21: Opsluiting | L21: Bomen en Struiken
A22: =+IF(AND(G25>0,G25<0.25),("invoer fout breedte klinkers"),IF(AND(G26>0,G26<0.25),("invoer fout breedte klinkers"),IF(AND(G27>0,G27<0.25),("invoer fout breedte klinkers"),""))) ->  | C22: Tegels | F22: Klinkers | I22: trottoir-banden: | J22: opsluit- / koprolband
A24: adres | C24: lengte | D24: breedte | E24: m2 | F24: lengte | G24: breedte | H24: m2 | I24: m1 | J24: m1 | L24: eenh. | M24: prijs | N24: kosten
A25: …………………………………. | E25: =IF($D$25>=0.3,($C$25*$D$25),"") ->  | H25: =IF($G$25>=0.25,($F$25*$G$25),"") ->  | N25: =IF($L25>0,$M25*($L25+0),"") -> 
A26: …………………………………. | E26: =IF($D$26>=0.3,($C$26*$D$26),"") ->  | H26: =IF($G$26>=0.25,($F$26*$G$26),"") ->  | N26: =IF($L26>0,$M26*($L26+0),"") -> 
A27: …………………………………. | E27: =IF($D$27>=0.3,($C$27*$D$27),"") ->  | H27: =IF($G$27>=0.25,($F$27*$G$27),"") ->  | N27: =IF($L27>0,$M27*($L27+0),"") -> 
C28: =SUM(C25:C27) -> 0 | E28: =SUM(E25:E27) -> 0 | F28: =SUM(F25:F27) -> 0 | H28: =SUM(H25:H27) -> 0 | I28: =SUM(I25:I27) -> 0 | J28: =SUM(J25:K27) -> 0 | L28: =SUM(L25:L27) -> 0 | N28: =SUM(N25:N27) -> 0
C29: Bermen, gazon herstel door gemeente | F29: Bermen, gazon herstel door aanbieder | I29: Asfalt, all in* | L29: Dikte | M29: Prijs | N29: Asfalt
A30: adres | C30: lengte | D30: breedte | E30: m2 | F30: lengte | G30: breedte | H30: m2 | I30: lengte (m) | J30: breedte (m) | L30: cm | M30: m2/cm | N30: kosten
A31: ………………………………… | E31: =IF(C31>0,C31*(D31+0),"") ->  | H31: =IF(F31>0,F31*(G31+0),"") ->  | N31: =IF($I31>0,($I$31*$J$31*$L$31)*($M$31),"") -> 
A32: ………………………………… | E32: =IF(C32>0,C32*(D32+0),"") ->  | H32: =IF(F32>0,F32*(G32+0),"") ->  | N32: =IF($I32>0,($I$32*$J$32*$L$32)*($M$32),"") -> 
E33: =SUM(E31:E32) -> 0 | H33: =SUM(H30:H32) -> 0 | I33: =SUM(I30:I32) -> 0 | J33: =SUM(J30:K32) -> 0 | N33: =SUM(N31:N32) -> 0
A34: Specificatie: | C34: * de gedefinieerde sleufbreedte dient te worden aangegeven, voor netbeheerders (niet zijnde aanbieders volgens Telecommunicatiewet) geldt de (gemiddelde) breedte van de opgebroken bestrating. In de tarieven is de gatvergroting meegerekend door een toeslag van 20%.
A35: Tarief: | B35: =A9 -> 1
A36: Categorie: | B36: =VLOOKUP(B7,'Gemeenten met categorie'!$A$3:$C$393,3,FALSE) -> 1 | E36: Kosten per eenheid | G36: Degeneratiekosten | I36: Beheerk. | J36: Subtotaal | N36: Totaal regel
A37: Omschrijving | B37: Hoeveelheid | C37: Eenheid | D37: Sleuf m1 | E37: Uitv.kst | F37: Onderh.k | G37: Per rep. | H37: Per m1 | I37: per eenheid | J37: Uitv.k. | K37: Onderh.k | L37: Deg.kst. | M37: Beheer.k
A38: klinkers <= 15 m2 | B38: =IF($H$28<=15,$H$28,0) -> 0 | C38: m2 | E38: =IF($B$38>0,'Tabel Tarieven'!$R6,0) -> 0 | F38: =IF($B38>0,'Tabel Tarieven'!$R21,0) -> 0 | G38: =IF($B38>0,'Tabel Tarieven'!$R27,0) -> 0 | I38: =IF($B38>0,'Tabel Tarieven'!$R33,0) -> 0 | J38: =E38*B38 -> 0 | K38: =F38*B38 -> 0 | L38: =G38 -> 0 | M38: =I38*B38 -> 0 | N38: =+SUM(J38:M38) -> 0
A39: klinkers >15 m2 | B39: =IF($H$28>15,IF($B$35=1,IF($H$28<=100,$H$28,0),$H$28),0) -> 0 | C39: m2 | D39: =IF(B39>0,$F$28,0) -> 0 | E39: =IF(B39>0,'Tabel Tarieven'!$R7,0) -> 0 | F39: =IF($B39>0,'Tabel Tarieven'!$R22,0) -> 0 | H39: =IF($B39>0,'Tabel Tarieven'!$R28,0) -> 0 | I39: =IF($B39>0,'Tabel Tarieven'!$R34,0) -> 0 | J39: =E39*B39 -> 0 | K39: =F39*B39 -> 0 | L39: =H39*D39 -> 0 | M39: =I39*B39 -> 0 | N39: =+SUM(J39:M39) -> 0
A40: klinkers >100 m2 | B40: =IF($B$35=1,IF($H$28>100,$H$28,0),0) -> 0 | C40: m2 | D40: =IF(B40>0,$F$28,0) -> 0 | E40: =IF(B40>0,'Tabel Tarieven'!$R8,0) -> 0 | F40: =IF($B40>0,'Tabel Tarieven'!$R23,0) -> 0 | H40: =IF($B40>0,'Tabel Tarieven'!$R29,0) -> 0 | I40: =IF($B40>0,'Tabel Tarieven'!$R35,0) -> 0 | J40: 0 | K40: 0 | L40: =H40*D40 -> 0 | M40: 0 | N40: 0
A41: tegels <= 15 m2 | B41: =IF($E$28<=15,$E$28,0) -> 0 | C41: m2 | E41: =IF(B41>0,'Tabel Tarieven'!$R9,0) -> 0 | F41: =IF($B41>0,'Tabel Tarieven'!$R24,0) -> 0 | G41: =IF($B41>0,'Tabel Tarieven'!$R30,0) -> 0 | I41: =IF($B41>0,'Tabel Tarieven'!$R36,0) -> 0 | J41: 0 | K41: 0 | L41: =G41 -> 0 | M41: 0 | N41: 0
A42: tegels >15 m2 | B42: =IF($E$28>15,IF($B$35=1,IF($E$28<=100,$E$28,0),$E$28),0) -> 0 | C42: m2 | D42: =IF(B42>0,$C$28,0) -> 0 | E42: =IF(B42>0,'Tabel Tarieven'!$R10,0) -> 0 | F42: =IF($B42>0,'Tabel Tarieven'!$R25,0) -> 0 | H42: =IF($B42>0,'Tabel Tarieven'!$R31,0) -> 0 | I42: =IF($B42>0,'Tabel Tarieven'!$R37,0) -> 0 | J42: 0 | K42: 0 | L42: =H42*D42 -> 0 | M42: 0 | N42: 0
A43: tegels >100 m2 | B43: =IF($B$35=1,IF($E$28>100,$E$28,0),0) -> 0 | C43: m2 | D43: =IF(B43>0,$C$28,0) -> 0 | E43: =IF(B43>0,'Tabel Tarieven'!$R11,0) -> 0 | F43: =IF($B43>0,'Tabel Tarieven'!$R26,0) -> 0 | H43: =IF($B43>0,'Tabel Tarieven'!$R32,0) -> 0 | I43: =IF($B43>0,'Tabel Tarieven'!$R38,0) -> 0 | J43: 0 | K43: 0 | L43: =H43*D43 -> 0 | M43: 0 | N43: 0
A44: trottoirband | B44: =I28 -> 0 | C44: m1 | E44: =IF($B44>0,'Tabel Tarieven'!$R12,0) -> 0 | I44: =IF($B44>0,'Tabel Tarieven'!$R39,0) -> 0 | J44: 0 | M44: 0 | N44: 0
A45: opsluit/koprolband | B45: =J28 -> 0 | C45: m1 | E45: =IF($B45>0,'Tabel Tarieven'!$R13,0) -> 0 | I45: =IF($B45>0,'Tabel Tarieven'!$R40,0) -> 0 | J45: 0 | M45: 0 | N45: 0
A46: Berm/gazon, herstel wegb. | B46: =E33 -> 0 | C46: m2 | E46: =IF($B46>0,'Tabel Tarieven'!$R20,0) -> 0 | I46: =IF($B46>0,'Tabel Tarieven'!R41,0) -> 0 | J46: =E46*B46 -> 0 | M46: =I46*B46 -> 0 | N46: =+SUM(J46:M46) -> 0
A47: Berm/gazon, herstel aanb. | B47: =H33 -> 0 | C47: m2 | I47: =IF($B47>0,'Tabel Tarieven'!R42,0) -> 0 | J47: 0 | M47: 0 | N47: 0
A48: Bomen en struiken | C48: St. | E48: =IF($B48>0,'Tabel Tarieven'!$R16,0) -> 0 | I48: =IF($B48>0,'Tabel Tarieven'!R43,0) -> 0 | M48: =I48*B48 -> 0 | N48: =N28 -> 0
A49: Asfalt | B49: =(I31*J31)+I32*J32 -> 0 | C49: m2 | E49: =IF($B49>0,'Tabel Tarieven'!$R17,0) -> 0 | I49: 0 | M49: =I49*B49 -> 0 | N49: =N33 -> 0
A52: Naam en paraaf budgethouder: | C52: =M3 -> ………………………………… | E52: d.d. | F52: =M2 -> 2018-01-23T09:49:59.730 | I52: Afgewerk d.d. | J52: …………………………………………
A54: Factuuradres: | B54: ……………………………………………………………………………………………………….
M86: =IF(AND($A$9>1,$A$9<4,$E$28<=15),('Gemeenten met categorie'!#REF!),"") -> 

Sheet Gemeenten met categorie
B1: De Gemeenten van Nederland per 01-01-2017
B2: Gemeente: | C2: Indeling:
A3: 1 | B3: Aa en Hunze | C3: 1 | D3: Postbus 93, 9460 AB GIETEN
A4: 2 | B4: Aalburg | C4: 1 | D4: Postbus 40, 4260 AA WIJK EN AALBURG
A5: 3 | B5: Aalsmeer | C5: 2 | D5: Postbus 253, 1430 AG AALSMEER
A6: 4 | B6: Aalten | C6: 1 | D6: Postbus 119, 7120 AC AALTEN
A7: 5 | B7: Achterkarspelen | C7: 1 | D7: Postbus 2, 9285 ZV BUITENPOST
A8: 6 | B8: Alblasserdam | C8: 5 | D8: Postbus 2, 2950 AA ALBLASSERDAM
A9: 7 | B9: Albrandswaard | C9: 2 | D9: Postbus 1000, 3160 GA RHOON
A10: 8 | B10: Alkmaar | C10: 1 | D10: Postbus 53, 1800 BC ALKMAAR
A11: 9 | B11: Almelo | C11: 1 | D11: Postbus 5100, 7600 GC ALMELO
A12: 10 | B12: Almere | C12: 3 | D12: Postbus 200, 1300 AE ALMERE
A13: 11 | B13: Alphen aan de Rijn | C13: 5 | D13: Postbus 13, 2400 AA ALPHEN AAN DE RIJN
A14: 12 | B14: Alphen-Chaam | C14: 1 | D14: Postbus 3, 5130 AA ALPHEN
A15: 13 | B15: Ameland | C15: 1 | D15: Postbus 22, 9160 AA HOLLUM
A16: 14 | B16: Amersfoort | C16: 1 | D16: Postbus 4000, 3800 EA AMERSFOORT
A17: 15 | B17: Amstelveen | C17: 5 | D17: Postbus 4, 1180 BA AMSTELVEEN
A18: 16 | B18: Amsterdam | C18: 3 | D18: Postbus 202, 1000 AE AMSTERDAM
A19: 17 | B19: Apeldoorn | C19: 1 | D19: Postbus 9033, 7300 ES APELDOORN
A20: 18 | B20: Appingedam | C20: 5 | D20: Postbus 15, 9900 AA APPINGEDAM
A21: 19 | B21: Arnhem | C21: 1 | D21: Postbus 9029, 6800 EL ARNHEM
A22: 20 | B22: Assen | C22: 1 | D22: Postbus 30018, 9400 RA ASSEN
A23: 21 | B23: Asten | C23: 1 | D23: Postbus 290, 5720 AG ASTEN
A24: 22 | B24: Baarle-Nassau | C24: 1 | D24: Postbus 105, 5110 AC BAARLE-NASSAU
A25: 23 | B25: Baarn | C25: 1 | D25: Postbus 1003, 3740 BA BAARN
A26: 24 | B26: Barendrecht | C26: 5 | D26: Postbus 501, 2990 EA BARENDRECHT
A27: 25 | B27: Barneveld | C27: 1 | D27: Postbus 63, 3770 AB BARNEVELD
A28: 26 | B28: Bedum | C28: 5 | D28: Postbus 38, 9780 AA BEDUM
A29: 27 | B29: Beek | C29: 1 | D29: Postbus 20, 6190 AA BEEK
A30: 28 | B30: Beemster | C30: 4 | D30: Postbus 7, 1462 ZG MIDDENBEEMSTER
A31: 29 | B31: Beesel | C31: 1 | D31: Postbus 4750, 5953 ZK REUVER
A32: 30 | B32: Bellingwedde | C32: 1 | D32: Postbus 18, 9698 ZG WEDDE
A33: 31 | B33: Berg en Dal | C33: 1 | D33: Postbus 20, 6560 AA GROESBEEK
A34: 32 | B34: Bergeijk | C34: 1 | D34: Postbus 10000, 5570 GA BERGEIJK
A35: 33 | B35: Bergen (L.) | C35: 1 | D35: Postbus 140, 5854 ZJ BERGEN (L.)
A36: 34 | B36: Bergen (NH.) | C36: 1 | D36: Postbus 175, 1860 AD BERGEN (NH.)
A37: 35 | B37: Bergen op Zoom | C37: 1 | D37: Postbus 35, 4600 AA BERGEN OP ZOOM
A38: 36 | B38: Berkelland | C38: 1 | D38: Postbus 200, 7270 HA BORCULO
A39: 37 | B39: Bernheze | C39: 1 | D39: Postbus 19, 5384 ZG HEESH
A40: 38 | B40: Best | C40: 1 | D40: Postbus 50, 5680 AB BEST
A41: 39 | B41: Beuningen | C41: 1 | D41: Postbus 14, 6640 AA BEUNINGEN
A42: 40 | B42: Beverwijk | C42: 1 | D42: Postbus 450, 1940 AL BEVERWIJK
A43: 41 | B43: Binnenmaas | C43: 4 | D43: Postbus 5455, 3299 ZH MAASDAM
A44: 42 | B44: Bladel | C44: 1 | D44: Postbus 11, 5530 AA BLADEL
A45: 43 | B45: Blaricum | C45: 1 | D45: Postbus 125, 1260 AC BLARICUM
A46: 44 | B46: Bloemendaal | C46: 1 | D46: Postbus 201, 2050 AE OVERVEEN
A47: 45 | B47: Bodegraven-Reeuwijk | C47: 5 | D47: Postbus 401, 2410 AK BODEGRAVEN
A48: 46 | B48: Boekel | C48: 1 | D48: Postbus 99, 5427 ZH BOEKEL
A49: 47 | B49: Borger-Odoorn | C49: 1 | D49: Postbus 3, 7875 ZG EXLOO
A50: 48 | B50: Borne | C50: 1 | D50: Postbus 200, 7620 AE BORNE
A51: 49 | B51: Borsele | C51: 1 | D51: Postbus 1, 4450 AA HEINKENSZAND
A52: 50 | B52: Boxmeer | C52: 1 | D52: Postbus 450, 5830 AL BOXMEER
A53: 51 | B53: Boxtel | C53: 1 | D53: Postbus 10000, 5280 DA BOXTEL
A54: 52 | B54: Breda | C54: 1 | D54: Postbus 90156, 4800 RH BREDA
A55: 53 | B55: Brielle | C55: 1 | D55: Postbus 101, 3230 AC BRIELLE
A56: 54 | B56: Bronckhorst | C56: 1 | D56: Postbus 200, 7255 ZJ HENGELO
A57: 55 | B57: Brummen | C57: 1 | D57: Postbus 5, 6970 BV BRUMMEN
A58: 56 | B58: Brunssum | C58: 1 | D58: Postbus 250, 6440 AG BRUNSSUM
A59: 57 | B59: Bunnik | C59: 1 | D59: Postbus 5, 3980 CA BUNNINK
A60: 58 | B60: Bunschoten | C60: 1 | D60: Postbus 200, 3750 GE BUNSCHOTEN
A61: 59 | B61: Buren | C61: 1 | D61: Postbus 15, 4033 ZG LIENDEN
A62: 60 | B62: Capelle aan den IJssel | C62: 5 | D62: Postbus 70, 2900 AB CAPELLE AAN DE IJSSEL
A63: 61 | B63: Castircum | C63: 1 | D63: Postbus 1301, 1900 BH CASTRICUM
A64: 62 | B64: Coevorden | C64: 1 | D64: Postbus 2, 7740 AA COEVORDEN
A65: 63 | B65: Cranendonck | C65: 1 | D65: Postbus 2090, 6020 AB BUDEL
A66: 64 | B66: Cromstrijen | C66: 1 | D66: Postbus 7400, 3280 AE NUMANSDORP
A67: 65 | B67: Cuijk | C67: 1 | D67: Postbus 10001, 5430 DA CUIJK
A68: 66 | B68: Culemborg | C68: 3 | D68: Postbus 136, 4100 AC CULEMBERG
A69: 67 | B69: Dalfsen | C69: 1 | D69: Postbus 35, 7720 AA DALSEN
A70: 68 | B70: Dantumadeel | C70: 1 | D70: Postbus 22, 9104 BR DAMWOUDE
A71: 69 | B71: De Bilt | C71: 1 | D71: Postbus 300, 3720 AH BILTHOVEN
A72: 70 | B72: De Fryske Marren | C72: 1 | D72: Postbus 101, 8500 AC JOURE
A73: 71 | B73: De Marne | C73: 1 | D73: Postbus 11, 9965 ZG LEENS
A74: 72 | B74: De Ronde Venen | C74: 2 | D74: Postbus 250, 3640 AG MIJDRECHT
A75: 73 | B75: De Wolden | C75: 1 | D75: Postbus 20, 7920 AA ZUIDWOLDE
A76: 74 | B76: Delft | C76: 4 | D76: Postbus 78, 2600 ME DELFT
A77: 75 | B77: Delfzijl | C77: 3 | D77: Postbus 20000, 9930 PA DELFZIJL
A78: 76 | B78: Den Haag | C78: 1 | D78: Postbus 12600, 2500 DJ DEN HAAG
A79: 77 | B79: Den Helder | C79: 1 | D79: Postbus 36, 1780 AA DEN HELDER
A80: 78 | B80: Deurne | C80: 1 | D80: Postbus 3, 5750 AA DEURNE
A81: 79 | B81: Deventer | C81: 1 | D81: Postbus 5000, 7400GC DEVENTER
A82: 80 | B82: Diemen | C82: 5 | D82: Postbus 191, 1110 AD DIEMEN
A83: 81 | B83: Dinkelland | C83: 1 | D83: Postbus 11, 7590 AA DENEKAMP
A84: 82 | B84: Doesburg | C84: 1 | D84: Postbus 100, 6980 AC DOESBURG
A85: 83 | B85: Doetinchem | C85: 1 | D85: Postbus 9020, 7000 HA DOETINCHEM
A86: 84 | B86: Dongen | C86: 1 | D86: Postbus 10153, 5100 GE DONGEN
A87: 85 | B87: Dongeradeel | C87: 1 | D87: Postbus 1, 9100 AA DOKKUM
A88: 86 | B88: Dordrecht | C88: 1 | D88: Postbus 8, 3300 AA DORDRECHT
A89: 87 | B89: Drechterland | C89: 4 | D89: Postbus 9, 1616 ZG HOOGKARSPEL
A90: 88 | B90: Drimmelen | C90: 1 | D90: Postbus 19, 4920 AA MADE
A91: 89 | B91: Dronten | C91: 1 | D91: Postbus 100, 8250 AC DRONTEN
A92: 90 | B92: Druten | C92: 1 | D92: Postbus 1, 6650 AA DRUTEN
A93: 91 | B93: Duiven | C93: 1 | D93: Postbus 6, 6920 AA DUIVEN
A94: 92 | B94: Echt-Susteren | C94: 1 | D94: Postbus 450, 6100 AL ECHT
A95: 93 | B95: Edam-Volendam | C95: 5 | D95: Postbus 180, 1130 AD VOLENDAM
A96: 94 | B96: Ede | C96: 1 | D96: Postbus 9022, 6710 HK EDE
A97: 95 | B97: Eemnes | C97: 1 | D97: Postbus 71, 3755 AN EEMNES
A98: 96 | B98: Eemsmond | C98: 1 | D98: Postbus 11, 9980 AA UITHUIZEN
A99: 97 | B99: Eersel | C99: 1 | D99: Postbus 12, 5520 AA EERSEL
A100: 98 | B100: Eijsden-Margraten | C100: 1 | D100: Postbus 10, 6269 ZG MARGRATEN
A101: 99 | B101: Eindhoven | C101: 1 | D101: Postbus 90150, 5600 RB EINDHOVEN
A102: 100 | B102: Elburg | C102: 1 | D102: Postbus 70, 8080 AB ELBURG
A103: 101 | B103: Emmen | C103: 1 | D103: Postbus 3001, 7800 AA EMMEN
A104: 102 | B104: Enkhuizen | C104: 4 | D104: Postbus 11, 1600 AA ENKHUIZEN
A105: 103 | B105: Enschede | C105: 1 | D105: Postbus 20, 7500 AA ENSCHEDE
A106: 104 | B106: Epe | C106: 1 | D106: Postbus 600, 8160 AP EPE
A107: 105 | B107: Ermelo | C107: 1 | D107: Postbus 500, 3850 AM ERMELO
A108: 106 | B108: Etten-Leur | C108: 1 | D108: Postbus 10100, 4870 GA ETTEN-LEUR
A109: 107 | B109: Ferwerderadiel | C109: 1 | D109: Postbus 2, 9172 ZS FERWERT
A110: 108 | B110: Franekeradeel | C110: 1 | D110: Postbus 58, 8800 AB FRANEKER
A111: 109 | B111: Geertruidenberg | C111: 1 | D111: Postbus 10001, 4940 GA RAAMSDONKSVEER
A112: 110 | B112: Geldermalsen | C112: 3 | D112: Postbus 112, 4190 CG GELDERMALSEN
A113: 111 | B113: Geldrop-Mierlo | C113: 1 | D113: Postbus 10101, 5660 GA GELDROP
A114: 112 | B114: Gemert-Bakel | C114: 1 | D114: Postbus 10000, 5420 DA GEMERT
A115: 113 | B115: Gennep | C115: 1 | D115: Postbus 9003, 6590 HD GENNEP
A116: 114 | B116: Giessenlanden | C116: 5 | D116: Postbus 1, 4223 ZG HOORNAAR
A117: 115 | B117: Gilze en Rijen | C117: 1 | D117: Postbus 73, 5120 AB RIJEN
A118: 116 | B118: Goeree-Overflakkee | C118: 1 | D118: Postbus 1, 3240 AA MIDDELHARNIS
A119: 117 | B119: Goes | C119: 1 | D119: Postbus 2118, 4460 MC GOES
A120: 118 | B120: Goirle | C120: 1 | D120: Postbus 17, 5050 AA GOIRLE
A121: 119 | B121: Gooise Meren | C121: 1 | D121: Postbus 6000, 1400 HA BUSSUM
A122: 120 | B122: Gorichem | C122: 5 | D122: Postbus 108, 4200 AC GORINCHEM
A123: 121 | B123: Gouda | C123: 5 | D123: Postbus 1086, 2800 BB GOUDA
A124: 122 | B124: Grave | C124: 1 | D124: Postbus 7, 5360 AA GRAVE
A125: 123 | B125: Groningen | C125: 2 | D125: Postbus 2001, 9700 PB GRONINGEN
A126: 124 | B126: Grootegast | C126: 1 | D126: Postbus 46, 9860 AA GROOTEGAST
A127: 125 | B127: Gulpen-Wittem | C127: 1 | D127: Postbus 56, 6270 AB GULPEN
A128: 126 | B128: Haaksbergen | C128: 1 | D128: Postbus 102, 7480 AC HAAKSBERGEN
A129: 127 | B129: Haaren | C129: 1 | D129: Postbus 44, 5076 ZG HAAREN
A130: 128 | B130: Haarlem | C130: 1 | D130: Postbus 511, 2003 PB HAARLEM
A131: 129 | B131: Haarlemmerliede en Spaarnewoude | C131: 1 | D131: Postbus 83, 1160 AB ZWANENBURG
A132: 130 | B132: Haarlemmermeer | C132: 2 | D132: Postbus 250, 2130 AG HOOFDDORP
A133: 131 | B133: Halderberge | C133: 1 | D133: Postbus 5, 4730 AA OUDENBOSCH
A134: 132 | B134: Hardenberg | C134: 1 | D134: Postbus 500, 7770 BA HARDENBERG
A135: 133 | B135: Harderwijk | C135: 1 | D135: Postbus 149, 3840 AC HARDERWIJK
A136: 134 | B136: Hardinxveld-Giessendam | C136: 5 | D136: Postbus 175, 3370 AD HARDINXVELD-GIESSENDAM
A137: 135 | B137: Haren | C137: 1 | D137: Postbus 21, 9750 AA HAREN
A138: 136 | B138: Harlingen | C138: 1 | D138: Postbus 10000, 8860 HA HARLINGEN
A139: 137 | B139: Hattem | C139: 1 | D139: Postbus 93, 8050 AB HATTUM
A140: 138 | B140: Heemskerk | C140: 1 | D140: Postbus 39, 1960 AA HEEMSKERK
A141: 139 | B141: Heemstede | C141: 1 | D141: Postbus 352, 2100 AJ HEEMSTEDE
A142: 140 | B142: Heerde | C142: 1 | D142: Postbus 175, 8180 AD HEERDE
A143: 141 | B143: Heerenveen | C143: 1 | D143: Postbus 15000, 8440 GA HEERENVEEN
A144: 142 | B144: Heerhugowaard | C144: 1 | D144: Postbus 390, 1700 AJ HEERHUGOWAARD
A145: 143 | B145: Heerlen | C145: 1 | D145: Postbus 1, 6400 AA HEERLEN
A146: 144 | B146: Heeze-Leende | C146: 1 | D146: Postbus 10000, 5590 GA HEEZE
A147: 145 | B147: Heiloo | C147: 1 | D147: Postbus 1, 1850 AA HEILOO
A148: 146 | B148: Hellendoorn | C148: 1 | D148: Postbus 200, 7440 AE NIJVERDAL
A149: 147 | B149: Hellevoetsluis | C149: 1 | D149: Postbus 13, 3220 AA HELLEVOETSLUIS
A150: 148 | B150: Helmond | C150: 1 | D150: Postbus 950, 5700 AZ HELMOND
A151: 149 | B151: Hendrik-Ido-Ambacht | C151: 4 | D151: Postbus 34, 3340 AA HENDRIK-IDO-AMBACHT
A152: 150 | B152: Hengelo (O.) | C152: 1 | D152: Postbus 18, 7550 AA HENGELO
A153: 151 | B153: Het Bildt | C153: 1 | D153: Postbus 34, 9076 ZN ST. ANNAPAROCHIE
A154: 152 | B154: Heumen | C154: 1 | D154: Postbus 200, 6800 AZ MALDEN
A155: 153 | B155: Heusden | C155: 1 | D155: Postbus 31, 5250 AA VLIJMEN
A156: 154 | B156: Hillegom | C156: 1 | D156: Postbus 32, 2180 AA HILLEGOM
A157: 155 | B157: Hilvarenbeek | C157: 1 | D157: Postbus 3, 5080 AA HILVARENBEEK
A158: 156 | B158: Hilversum | C158: 1 | D158: Postbus 9900, 12101 GM HILVERSUM
A159: 157 | B159: Hof van Twente | C159: 1 | D159: Postbus 54, 7470 AB GOOR
A160: 158 | B160: Hollands Kroon | C160: 1 | D160: Postbus 8, 1760 AA ANNA PAULOWNA
A161: 159 | B161: Hoogeveen | C161: 1 | D161: Postbus 20000, 7900 PA HOOGEVEEN
A162: 160 | B162: Hoogezand -Sappemeer | C162: 1 | D162: Postbus 75, 9600 AB HOOGEZAND
A163: 161 | B163: Hoorn | C163: 5 | D163: Postbus 603, 1620 AR HOORN
A164: 162 | B164: Horst aan de Maas | C164: 1 | D164: Postbus 6005, 5960 AA HORST
A165: 163 | B165: Houten | C165: 1 | D165: Postbus 30, 3990 DA HOUTEN
A166: 164 | B166: Huizen | C166: 1 | D166: Postbus 5, 1270 AA HUIZEN
A167: 165 | B167: Hulst | C167: 1 | D167: Postbus 49, 4560 AA HULST
A168: 166 | B168: IJsselstein | C168: 1 | D168: Postbus 26, 3400 AA IJSSELSTEIN
A169: 167 | B169: Kaag en Braassem | C169: 3 | D169: Postbus 1, 2370 AA ROELOFARENDSVEEN
A170: 168 | B170: Kampen | C170: 1 | D170: Postbus 5009, 8260 GA KAMPEN
A171: 169 | B171: Kapelle | C171: 1 | D171: Postbus 79, 4420 AC KAPELLE
A172: 170 | B172: Katwijk | C172: 1 | D172: Postbus 589, 2220 AN KATWIJK
A173: 171 | B173: Kerkrade | C173: 1 | D173: Postbus 600, 6460 AP KERKRADE
A174: 172 | B174: Koggenland | C174: 5 | D174: Postbus 21 1633 ZG AVENHORN
A175: 173 | B175: Kollumerland en Nieuwkruisland | C175: 1 | D175: Postbus 13, 9290 AA KOLLUM
A176: 174 | B176: Korendijk | C176: 1 | D176: Postbus 3708, 3265 ZG PIERSHIL
A177: 175 | B177: Krimpen aan den IJssel | C177: 5 | D177: Postbus 200, 2922 AE KRIMPEN AAN DE IJSSEL
A178: 176 | B178: Krimpenerwaard | C178: 5 | D178: Postbus 51, 2820 AB STOLWIJK
A179: 177 | B179: Laarbeek | C179: 1 | D179: Postbus 190, 5740 AD BEEK EN DONK
A180: 178 | B180: Landerd | C180: 1 | D180: Postbus 35, 5410 AA ZEELAND
A181: 179 | B181: Landgraaf | C181: 1 | D181: Postbus 31000, 6370 AA LANDGRAAF
A182: 180 | B182: Landsmeer | C182: 5 | D182: Postbus 1, 1120 AA LANDSMEER
A183: 181 | B183: Langedijk | C183: 1 | D183: Postbus 15, 1723 ZG NOORD-SCHARWOUDE
A184: 182 | B184: Lansingerland | C184: 5 | D184: Postbus 1, 2650 AA BERKEL & RODENRIJS
A185: 183 | B185: Laren | C185: 1 | D185: Postbus 5, 1250 AA LAREN
A186: 184 | B186: Leek | C186: 1 | D186: Postbus 100, 9350 AC LEEK
A187: 185 | B187: Leerdam | C187: 3 | D187: Postbus 15, 4140 AA LEERDAM
A188: 186 | B188: Leeuwarden | C188: 1 | D188: Postbus 21000, 8900 JA LEEUWARDEN
A189: 187 | B189: Leeuwarderadeel | C189: 2 | D189: Postbus 24, 9050 AA STIENS
A190: 188 | B190: Leiden | C190: 1 | D190: Postbus 9100, 2300 PC LEIDEN
A191: 189 | B191: Leiderdorp | C191: 3 | D191: Postbus 35, 2353 AA LEIDERDORP
A192: 190 | B192: Leidschendam-Voorburg | C192: 1 | D192: Postbus 905, 2270 AX VOORBURG
A193: 191 | B193: Lelystad | C193: 1 | D193: Postbus 91, 8200 AB LELYSTAD
A194: 192 | B194: Leudal | C194: 1 | D194: Postbus 3008, 6093 ZG HEYTHUYSEN
A195: 193 | B195: Leusden | C195: 1 | D195: Postbus 150, 3830 AD LEUSDEN
A196: 194 | B196: Lingewaal | C196: 3 | D196: Postbus 1014, 4147 ZG ASPEREN
A197: 195 | B197: Lingewaard | C197: 1 | D197: Postbus 15, 6680 AA BEMMEL
A198: 196 | B198: Lisse | C198: 1 | D198: Postbus 200, 2160 AE LISSE
A199: 197 | B199: Littenseradiel | C199: 1 | D199: Postbus 1, 8730 AA WOMMELS
A200: 198 | B200: Lochem | C200: 1 | D200: Postbus 17, 7240 AA LOCHEM
... 198 more rows

Sheet INFO
C2: Werking "Rekenblad":
B3: - | C3: Door de groene posities in te vullen vindt de verrekening plaats volgens de "Richtlijn tarieven (graaf) werkzaamheden Telecom".
B4: - | C4: Om de bomen, struiken en het asfalt te kunnen verrekenen kan een projectprijs worden afgesproken en ingevoerd.
B5: - | C5: Door scrollen kan de gemeente worden ingesteld en daarna opgeslagen. Dus een éénmalige actie!
B6: - | C6: Tevens kan door scrollen de aard van de werkzaamheden worden ingesteld.
B7: - | C7: Door beide scrollbeweging uit te voeren worden de gemeente en de juiste tarieven ingesteld.
C9: Dit "Rekenblad" is een uitgave van de Vereniging van Nederlandse Gemeenten en is gebaseerd op:
C10: "RICHTLIJN tarieven (graaf)werkzaamheden Telecom", uitgegeven: 12 maart 2004
C11: Richtlijn voor gemeenten en aanbieders van telecom diensten ten behoeve van het berekenen van tarieven voor herstel, onderhoud, beheer- en
C12: degeneratiekosten bij (graaf)werkzaamheden door aanbieders, in openbare gronden die in eigendom of beheer zijn van gemeenten.
B13: - | C13: De Richtlijn bevat: | E13: definities, rekenmethodiek en tarieven
B14: - | C14: In de tarieven wordt geen onderscheid gemaakt tussen lasgaten en sleuven. Alle werkzaamheden worden berekend per vierkante meter.
C15: De degeneratie vergoeding wordt verrekend per strekkende meter.
B16: - | C16: Bij de berekening van de degeneratie vergoeding wordt gebruik gemaakt van de per 1 januari 2001 gehanteerde berekenwijze voor de
C17: maatstaf bodemgesteldheid ten behoeve van de algemene uitkering uit het gemeentefonds. De bodempercentages t.g.v. samenvoegingen van gemeenten
C18: zijn berekend tot 1 januari van het voorafgaande jaar.
C20: Gebruik van dit rekenblad
B21: - | C21: De wijze van de sleufbreedte is als volgt gedefinieerd:
D22: - de werkelijke sleufbreedte, deze wordt tijdens de uitvoering gemeten
D23: * de werkelijke sleufbreedte wordt ingevoerd in het rekenblad
D24: * het rekenblad rekent met de oppervlakte (lengte x breedte) zoals ingevuld.
D25: * de gatvergroting wordt niet in oppervlak uitgedrukt maar in een toeslag van 20% op de uitvoeringskosten (en dus op alle tariefcomponenten)
D26: Geen sleufbreedte gemeten
D27: - de gemiddelde breedte van het grondverzet, gemeten als breedte van de toegepaste graafbak, naar boven afgerond op 5 cm,
D28: - met een minimum breedte voor tegelverharding van 30 cm en voor klinkerverharding van 20 cm.
B29: - | C29: De "Richtlijn" is van toepassing op het herstel van opgebroken bestrating.
B30: - | C30: In de "Richtlijn" is aangegeven wanneer de sleuf door de aanbieder moet worden gedicht en onder welke voorwaarden dit is toegestaan.
B31: - | C31: De werkzaamheden die de gemeente verricht en waarvoor bij het verlenen van het instemmingbesluit leges worden geheven, vallen niet
C32: onder de berekening van de beheerskosten in deze "Richtlijn".
B33: - | C33: In de rekenmethodiek van de "Richtlijn" zijn ook groenvoorzieningen opgenomen.
B34: - | C34: De "Richtlijn" bevat ook een degeneratievergoeding voor tegelverharding.
B35: - | C35: Per project is het aantal m2 bepalend voor de toepassing van tarief <15 m2 of >15 m2, afzonderlijk voor tegels en klinkers. Dus tegel- en
C36: klinkeroppervlakken niet bij elkaar optellen. Op het rekenblad gaat dat automatisch.
B37: - | C37: Meerdere kleine opbrekingen binnen 10 m (zoals huisaansluitingen) worden aangemerkt als één reparatie.
B38: - | C38: Op de tarieven is indexering van toepassing. Jaarlijks zal door de VNG een geïndexeerd "Rekenblad" tijdig ter beschikking worden gesteld.
C40: Afwijkende tarieven
B41: - | C41: Voor gefundeerde verharding en voor groenvoorzieningen wordt geen degeneratievergoeding berekend.
B42: - | C42: Wanneer er van band tot band wordt hersteld wordt er geen degeneratievergoeding berekend en geen gatvergroting van 20%. Het
C43: rekenblad is in deze gevallen niet toepasbaar. Maak per project afspraken, bij voorkeur vooruitlopend op de uitvoering.
B44: - | C44: Voor gesloten verhardingen zoals asfalt, cementbeton, grootschalige en kleinschalige verhardingselementen, plantsoenen en bomen,
C45: dienen tussen de gemeente en de aanbieder op projectniveau, of zo mogelijk generiek, afspraken te worden gemaakt. Voor de verrekening
C46: kan het "rekenblad" worden gebruikt.
C48: Wijzigingen per 1-1-2018
B49: - | C49: De wijzigingen hebben geen invloed op de "Richtlijn tarieven (graaf) werkzaamheden Telecom", maar maken het rekenblad
C50: praktischer en overzichtelijker.
B51: - | C51: Naast Tarief C (Herstel door de gemeente vooraf gaande aan algehele herbestrating) is ook toegevoegd Tarief C1 (idem, herstel en onderhoud
C52: door aanbieder/netbeheerder) en Tarief C2 (idem, herstel door aanbieder/netbeheerder, onderhoud door gemeente).
B53: - | C53: De C-tarieven gelden alleen indien vooraf afgesproken en maximaal 1 jaar voor de geplande herbestrating.
B54: - | C54: Banden (trottoirbanden, opsluit- / koprolbanden) zijn nu opgenomen in de tarieven A, B1, enz. Zo wordt automatisch het juiste tarief berekend.
B55: - | C55: Het tarief voor bermen en gazons is herzien, waardoor het minimum tarief t/m 50m2 is vervallen. Er zijn nu 2 tarieven: Bermen, gazon herstel door
C56: gemeente en bermen, gazon herstel door aanbieder/netbeheerder. De keuze voor welk tarief is onafhankelijk gemaakt van Tarief A, B1, enz,
B57: - | C57: De tabel tarieven is toegevoegd. (Zie uitleg hieronder). Hierin staan alle tariefcomponenten per kostensoort. De herkomst is de berekening
C58: in het bestand tariefbladen-slechte-bodem-vng waar een gelijke tabel als resultaat van de berekening van de tarieven is te vinden.
B59: - | C59: Steeds meer gemeenten hanteren deze tarieven ook voor netbeheerders, niet telecombedrijven. Als te verrekenen oppervlakte wordt dan
C60: vrijwel altijd de werkelijk opgebroken bestrating gehanteerd. Deze mogelijkheid is toegevoegd.
C62: Nadere uitleg Tabel tarieven
B63: - | C63: Per kostensoort (Uitvoerings-, Onderhouds-, Degeneratie- en Beheerskosten) wordt met een kruisje aangegeven of dit van toepassing
C64: is per tarief (A, B1, B2, C, C1 en C2).
B65: - | C65: In de kolommen daarachter staan de tarieven van die kostensoort en omschrijving per bodemcategorie.
B66: - | C66: Wanneer het rekenblad gevuld wordt (keuze gemeente en soort tarief) verschijnen in de laatste kolom de tarieven die van toepassing zijn,
C67: deze worden gebruikt voor de berekening op het rekenblad voor de specificatie.
C69: Toepassing:
C70: De VNG en een representatieve vertegenwoordiging van de Telecomsector hebben als: "Packed deal" overeenstemming bereikt over de
C71: rekenmethodiek en de tarieven van de "Richtlijn", die integraal behoort te worden toegepast.

Sheet Tabel Tarieven
A1: Kostensoort | B1: Tariefgroepen | I1: Omschrijving | J1: Eenheid | K1: Bedragen 2018 v2 per kostensoort per bodemcategorie | R1: Actueel tarief
A2: Uitvoeringskosten | B2: X in kolom is van toepassing bij deze tariefgroep | I2: Klinkers, tegels, trottoirband, opsluit/koprolband, berm/gazon. Eenheid: per m2, m1, bij degenaratie per reparatie of m1 sleuf | K2: Afh. Cat.?: | L2: Bij nee zijn de tarieven gelijk in elke kolom: onafhankelijk categorie | R2: Tarief | S2: =Rekenblad!B35 -> 1
A3: Onderhoudskosten | K3: > Zie > tabblad >>>> | L3: < 50% slechte bodem | M3: 50-60% slechte bodem | N3: 60-70% slechte bodem | O3: 70-80% slechte bodem | P3: > 80% slechte bodem | R3: Categorie | S3: =Rekenblad!B36 -> 1
A4: Degeneratiekosten | B4: 1 | C4: 2 | D4: 3 | E4: 4 | F4: 5 | G4: 6 | H4: - | R4: Toelichting: deze waarden worden gebruikt in het Rekenblad en zijn afhankelijk van de invoer op het Rekenblad
A5: Beheerkosten | B5: A | C5: B1 | D5: B2 | E5: C | F5: C1 | G5: C2 | H5: D | K5: Afh. Cat.? | L5: 1 | M5: 2 | N5: 3 | O5: 4 | P5: 5
A6: Uitvoeringskosten | B6: X | I6: klinkers <= 15 m2 | J6: m2 | K6: Nee | L6: 29.21 | M6: 29.21 | N6: 29.21 | O6: 29.21 | P6: 29.21 | R6: =IF($S$2=1,INDEX($L$6:$P$42,,$S$3),0)+R14 -> 29.21 | S6: Uitvoeringskosten C opgeteld regel 14
A7: Uitvoeringskosten | B7: X | I7: klinkers >15 m2 | J7: m2 | K7: Nee | L7: 23.88 | M7: 23.88 | N7: 23.88 | O7: 23.88 | P7: 23.88 | R7: =IF($S$2=1,INDEX($L$6:$P$42,,$S$3),0)+R15 -> 23.88 | S7: Uitvoeringskosten C opgeteld regel 15
A8: Uitvoeringskosten | B8: X | I8: klinkers >100 m2 | J8: m2 | K8: Nee | L8: 21.22 | M8: 21.22 | N8: 21.22 | O8: 21.22 | P8: 21.22 | R8: =IF($S$2=1,INDEX($L$6:$P$42,,$S$3),0) -> 21.22
A9: Uitvoeringskosten | B9: X | I9: tegels <= 15 m2 | J9: m2 | K9: Nee | L9: 23.21 | M9: 23.21 | N9: 23.21 | O9: 23.21 | P9: 23.21 | R9: =IF($S$2=1,INDEX($L$6:$P$42,,$S$3),0)+R16 -> 23.21 | S9: Uitvoeringskosten C opgeteld regel 16
A10: Uitvoeringskosten | B10: X | I10: tegels >15 m2 | J10: m2 | K10: Nee | L10: 17.87 | M10: 17.87 | N10: 17.87 | O10: 17.87 | P10: 17.87 | R10: =IF($S$2=1,INDEX($L$6:$P$42,,$S$3),0)+R17 -> 17.87 | S10: Uitvoeringskosten C opgeteld regel 17
A11: Uitvoeringskosten | B11: X | I11: tegels >100 m2 | J11: m2 | K11: Nee | L11: 16.8 | M11: 16.8 | N11: 16.8 | O11: 16.8 | P11: 16.8 | R11: =IF($S$2=1,INDEX($L$6:$P$42,,$S$3),0) -> 16.8
A12: Uitvoeringskosten | B12: X | I12: trottoirband | J12: m1 | K12: Nee | L12: 10.89 | M12: 10.89 | N12: 10.89 | O12: 10.89 | P12: 10.89 | R12: =IF($S$2=1,INDEX($L$6:$P$42,,$S$3),0)+R18 -> 10.89 | S12: Uitvoeringskosten C opgeteld regel 18
A13: Uitvoeringskosten | B13: X | I13: opsluit/koprolband | J13: m1 | K13: Nee | L13: 8.67 | M13: 8.67 | N13: 8.67 | O13: 8.67 | P13: 8.67 | R13: =IF($S$2=1,INDEX($L$6:$P$42,,$S$3),0)+R19 -> 8.67 | S13: Uitvoeringskosten C opgeteld regel 19
A14: Uitvoeringskosten | E14: X | I14: klinkers <= 15 m2 | J14: m2 | K14: Nee | L14: 12.17 | M14: 12.17 | N14: 12.17 | O14: 12.17 | P14: 12.17 | R14: =IF($S$2=4,INDEX($L$6:$P$42,,$S$3),0) -> 0 | S14: Is opgeteld bij regel 6
A15: Uitvoeringskosten | E15: X | I15: klinkers >15 m2 | J15: m2 | K15: Nee | L15: 9.95 | M15: 9.95 | N15: 9.95 | O15: 9.95 | P15: 9.95 | R15: =IF($S$2=4,INDEX($L$6:$P$42,,$S$3),0) -> 0 | S15: Is opgeteld bij regel 7
A16: Uitvoeringskosten | E16: X | I16: tegels <= 15 m2 | J16: m2 | K16: Nee | L16: 9.67 | M16: 9.67 | N16: 9.67 | O16: 9.67 | P16: 9.67 | R16: 0 | S16: Is opgeteld bij regel 9
A17: Uitvoeringskosten | E17: X | I17: tegels >15 m2 | J17: m2 | K17: Nee | L17: 7.45 | M17: 7.45 | N17: 7.45 | O17: 7.45 | P17: 7.45 | R17: 0 | S17: Is opgeteld bij regel 10
A18: Uitvoeringskosten | E18: X | I18: trottoirband | J18: m1 | K18: Nee | L18: 4.54 | M18: 4.54 | N18: 4.54 | O18: 4.54 | P18: 4.54 | R18: 0 | S18: Is opgeteld bij regel 12
A19: Uitvoeringskosten | E19: X | I19: opsluit/koprolband | J19: m1 | K19: Nee | L19: 3.61 | M19: 3.61 | N19: 3.61 | O19: 3.61 | P19: 3.61 | R19: 0 | S19: Is opgeteld bij regel 13
A20: Uitvoeringskosten | H20: X | I20: berm / gazon, herstel door gemeente | J20: m2 | K20: Nee | L20: 1.85 | M20: 1.85 | N20: 1.85 | O20: 1.85 | P20: 1.85 | R20: =INDEX($L$6:$P$42,,$S$3) -> 1.85
A21: Onderhoudskosten | B21: X | D21: X | E21: X | G21: X | I21: klinkers <= 15 m2 | J21: m2 | K21: Ja | L21: 2.16 | M21: 2.44 | N21: 3.27 | O21: 4.98 | P21: 5.55 | R21: =IF(OR($S$2=1,$S$2=3,$S$2=4,$S$2=6),INDEX($L$6:$P$42,,$S$3),0) -> 2.16
A22: Onderhoudskosten | B22: X | D22: X | E22: X | G22: X | I22: klinkers >15 m2 | J22: m2 | K22: Ja | L22: 1.77 | M22: 1.99 | N22: 2.67 | O22: 4.07 | P22: 4.54 | R22: =IF(OR($S$2=1,$S$2=3,$S$2=4,$S$2=6),INDEX($L$6:$P$42,,$S$3),0) -> 1.77
A23: Onderhoudskosten | B23: X | I23: klinkers >100 m2 (alleen tarief A) | J23: m2 | K23: Ja | L23: 1.57 | M23: 1.77 | N23: 2.38 | O23: 3.62 | P23: 4.03 | R23: =IF($S$2=1,INDEX($L$6:$P$42,,$S$3),0) -> 1.57
A24: Onderhoudskosten | B24: X | D24: X | E24: X | G24: X | I24: tegels <= 15 m2 | J24: m2 | K24: Ja | L24: 1.2 | M24: 1.37 | N24: 1.9 | O24: 3.13 | P24: 3.54 | R24: =IF(OR($S$2=1,$S$2=3,$S$2=4,$S$2=6),INDEX($L$6:$P$42,,$S$3),0) -> 1.2
A25: Onderhoudskosten | B25: X | D25: X | E25: X | G25: X | I25: tegels >15 m2 | J25: m2 | K25: Ja | L25: 0.92 | M25: 1.06 | N25: 1.47 | O25: 2.41 | P25: 2.73 | R25: =IF(OR($S$2=1,$S$2=3,$S$2=4,$S$2=6),INDEX($L$6:$P$42,,$S$3),0) -> 0.92
A26: Onderhoudskosten | B26: X | I26: tegels >100 m2 | J26: m2 | K26: Ja | L26: 0.87 | M26: 0.99 | N26: 1.38 | O26: 2.27 | P26: 2.56 | R26: =IF($S$2=1,INDEX($L$6:$P$42,,$S$3),0) -> 0.87
A27: Degeneratiekosten | B27: X | C27: X | D27: X | I27: klinkers <= 15 m2 | J27: reparatie | K27: Ja | L27: 7.89 | M27: 11.09 | N27: 20.71 | O27: 31.8 | P27: 38.95 | R27: =IF($S$2<4,INDEX($L$6:$P$42,,$S$3),0) -> 7.89
A28: Degeneratiekosten | B28: X | C28: X | D28: X | I28: klinkers >15 m2 | J28: m1 sleuf | K28: Ja | L28: 2.62 | M28: 3.68 | N28: 6.85 | O28: 13.65 | P28: 15.92 | R28: =IF($S$2<4,INDEX($L$6:$P$42,,$S$3),0) -> 2.62
A29: Degeneratiekosten | B29: X | I29: klinkers >100 m2 (alleen tarief A) | J29: m1 sleuf | K29: Ja | L29: 2.33 | M29: 3.27 | N29: 6.09 | O29: 12.13 | P29: 14.15 | R29: =IF($S$2=1,INDEX($L$6:$P$42,,$S$3),0) -> 2.33
A30: Degeneratiekosten | B30: X | C30: X | D30: X | I30: tegels <= 15 m2 | J30: reparatie | K30: Ja | L30: 0 | M30: 0.78 | N30: 3.13 | O30: 9.01 | P30: 10.97 | R30: =IF($S$2<4,INDEX($L$6:$P$42,,$S$3),0) -> 0
A31: Degeneratiekosten | B31: X | C31: X | D31: X | I31: tegels >15 m2 | J31: m1 sleuf | K31: Ja | L31: 0 | M31: 0.15 | N31: 0.6 | O31: 7.39 | P31: 9.65 | R31: =IF($S$2<4,INDEX($L$6:$P$42,,$S$3),0) -> 0
A32: Degeneratiekosten | B32: X | I32: tegels >100 m2 | J32: m1 sleuf | K32: Ja | L32: 0 | M32: 0.14 | N32: 0.57 | O32: 6.95 | P32: 9.07 | R32: =IF($S$2=1,INDEX($L$6:$P$42,,$S$3),0) -> 0
A33: Beheerskosten | B33: X | C33: X | D33: X | E33: X | F33: X | G33: X | I33: klinkers <= 15 m2 | J33: m2 | K33: Nee | L33: 1.75 | M33: 1.75 | N33: 1.75 | O33: 1.75 | P33: 1.75 | R33: =INDEX($L$6:$P$42,,$S$3) -> 1.75
A34: Beheerskosten | B34: X | C34: X | D34: X | E34: X | F34: X | G34: X | I34: klinkers >15 m2 | J34: m2 | K34: Nee | L34: 1.43 | M34: 1.43 | N34: 1.43 | O34: 1.43 | P34: 1.43 | R34: 1.43
A35: Beheerskosten | B35: X | C35: X | D35: X | E35: X | F35: X | G35: X | I35: klinkers >100 m2 (alleen tarief A) | J35: m2 | K35: Nee | L35: 1.27 | M35: 1.27 | N35: 1.27 | O35: 1.27 | P35: 1.27 | R35: 1.27
A36: Beheerskosten | B36: X | C36: X | D36: X | E36: X | F36: X | G36: X | I36: tegels <= 15 m2 | J36: m2 | K36: Nee | L36: 1.39 | M36: 1.39 | N36: 1.39 | O36: 1.39 | P36: 1.39 | R36: 1.39
A37: Beheerskosten | B37: X | C37: X | D37: X | E37: X | F37: X | G37: X | I37: tegels >15 m2 | J37: m2 | K37: Nee | L37: 1.07 | M37: 1.07 | N37: 1.07 | O37: 1.07 | P37: 1.07 | R37: 1.07
A38: Beheerskosten | B38: X | C38: X | D38: X | E38: X | F38: X | G38: X | I38: tegels >100 m2 | J38: m2 | K38: Nee | L38: 1.01 | M38: 1.01 | N38: 1.01 | O38: 1.01 | P38: 1.01 | R38: 1.01
A39: Beheerskosten | B39: X | C39: X | D39: X | E39: X | F39: X | G39: X | I39: trottoirband | J39: m1 | K39: Nee | L39: 0.65 | M39: 0.65 | N39: 0.65 | O39: 0.65 | P39: 0.65 | R39: 0.65
A40: Beheerskosten | B40: X | C40: X | D40: X | E40: X | F40: X | G40: X | I40: opsluit/koprolband | J40: m1 | K40: Nee | L40: 0.52 | M40: 0.52 | N40: 0.52 | O40: 0.52 | P40: 0.52 | R40: 0.52
A41: Beheerskosten | H41: X | I41: berm / gazon, herstel door gemeente | J41: m2 | K41: Nee | L41: 0.11 | M41: 0.11 | N41: 0.11 | O41: 0.11 | P41: 0.11 | R41: =INDEX($L$6:$P$42,,$S$3) -> 0.11
A42: Beheerskosten | H42: X | I42: berm / gazon, herstel door gem of aanb | J42: m2 | K42: Nee | L42: 0.11 | M42: 0.11 | N42: 0.11 | O42: 0.11 | P42: 0.11 | R42: 0.11
A44: De bedragen (L6..P41) vanuit de bron: tabblad "Tabel Tarieven" van bestand tariefbladen-slechte-bodem-vng-JJJJ kopiëren (met plakken - waarde) naar dit tabblad (in L6..P42). Kopieer K1 naar K1 (plakken waarde).
Q519: 2.14 | R519: 7.81 | S519: 0 | T519: 1.74
Q520: 1.75 | R520: 0 | S520: 2.59 | T520: 1.42
Q521: 1.55 | R521: 0 | S521: 2.3 | T521: 1.26
Q522: 1.18 | R522: 0 | S522: 0 | T522: 1.37
Q523: 0.91 | R523: 0 | S523: 0 | T523: 1.06
Q524: 0.85 | R524: 0 | S524: 0 | T524: 0.99
T525: 0.65
T526: 0.51
R527: 7.81 | S527: 0 | T527: 1.74
R528: 0 | S528: 2.59 | T528: 1.42
R529: 0 | S529: 0 | T529: 1.37
R530: 0 | S530: 0 | T530: 1.06
T531: 0.65
T532: 0.51
Q533: 2.14 | R533: 7.81 | S533: 0 | T533: 1.74
Q534: 1.75 | R534: 0 | S534: 2.59 | T534: 1.42
Q535: 1.18 | R535: 0 | S535: 0 | T535: 1.37
Q536: 0.91 | R536: 0 | S536: 0 | T536: 1.06
T537: 0.65
T538: 0.51
Q539: 2.14 | T539: 1.74
Q540: 1.75 | T540: 1.42
Q541: 1.18 | T541: 1.37
Q542: 0.91 | T542: 1.06
T543: 0.65
T544: 0.51
T545: 1.74
T546: 1.42
T547: 1.37
T548: 1.06
T549: 0.65
T550: 0.51
Q551: 2.14 | T551: 1.74
Q552: 1.75 | T552: 1.42
Q553: 1.18 | T553: 1.37
Q554: 0.91 | T554: 1.06
T555: 0.65
T556: 0.51
T557: 0.11
T558: 0.11
Q559: 2.41 | R559: 10.98 | S559: 0 | T559: 1.74
Q560: 1.97 | R560: 0 | S560: 3.64 | T560: 1.42
Q561: 1.75 | R561: 0 | S561: 3.24 | T561: 1.26
Q562: 1.35 | R562: 0.77 | S562: 0 | T562: 1.37
Q563: 1.04 | R563: 0 | S563: 0.15 | T563: 1.06
Q564: 0.98 | R564: 0 | S564: 0.14 | T564: 0.99
R565: 10.98 | S565: 0 | T565: 1.74
R566: 0 | S566: 3.64 | T566: 1.42
R567: 0.77 | S567: 0 | T567: 1.37
R568: 0 | S568: 0.15 | T568: 1.06
Q569: 2.41 | R569: 10.98 | S569: 0 | T569: 1.74
Q570: 1.97 | R570: 0 | S570: 3.64 | T570: 1.42
Q571: 1.35 | R571: 0.77 | S571: 0 | T571: 1.37
Q572: 1.04 | R572: 0 | S572: 0.15 | T572: 1.06
Q573: 2.41 | T573: 1.74
Q574: 1.97 | T574: 1.42
Q575: 1.35 | T575: 1.37
Q576: 1.04 | T576: 1.06
T577: 1.74
T578: 1.42
T579: 1.37
T580: 1.06
Q581: 2.41 | T581: 1.74
Q582: 1.97 | T582: 1.42
Q583: 1.35 | T583: 1.37
Q584: 1.04 | T584: 1.06
Q585: 3.24 | R585: 20.5 | S585: 0 | T585: 1.74
Q586: 2.65 | R586: 0 | S586: 6.79 | T586: 1.42
Q587: 2.35 | R587: 0 | S587: 6.03 | T587: 1.26
Q588: 1.88 | R588: 3.09 | S588: 0 | T588: 1.37
Q589: 1.45 | R589: 0 | S589: 0.6 | T589: 1.06
Q590: 1.36 | R590: 0 | S590: 0.56 | T590: 0.99
R591: 20.5 | S591: 0 | T591: 1.74
R592: 0 | S592: 6.79 | T592: 1.42
R593: 3.09 | S593: 0 | T593: 1.37
R594: 0 | S594: 0.6 | T594: 1.06
Q595: 3.24 | R595: 20.5 | S595: 0 | T595: 1.74
Q596: 2.65 | R596: 0 | S596: 6.79 | T596: 1.42
Q597: 1.88 | R597: 3.09 | S597: 0 | T597: 1.37
Q598: 1.45 | R598: 0 | S598: 0.6 | T598: 1.06
Q599: 3.24 | T599: 1.74
Q600: 2.65 | T600: 1.42
Q601: 1.88 | T601: 1.37
Q602: 1.45 | T602: 1.06
T603: 1.74
T604: 1.42
T605: 1.37
T606: 1.06
Q607: 3.24 | T607: 1.74
Q608: 2.65 | T608: 1.42
Q609: 1.88 | T609: 1.37
Q610: 1.45 | T610: 1.06
Q611: 4.93 | R611: 31.48 | S611: 0 | T611: 1.74
Q612: 4.03 | R612: 0 | S612: 13.52 | T612: 1.42
Q613: 3.58 | R613: 0 | S613: 12.01 | T613: 1.26
Q614: 3.09 | R614: 8.89 | S614: 0 | T614: 1.37
Q615: 2.38 | R615: -,-- | S615: 7.29 | T615: 1.06
Q616: 2.24 | R616: 0 | S616: 6.86 | T616: 0.99
R617: 31.48 | S617: 0 | T617: 1.74
R618: 0 | S618: 13.52 | T618: 1.42
R619: 8.89 | S619: 0 | T619: 1.37
R620: -,-- | S620: 7.29 | T620: 1.06
Q621: 4.93 | R621: 31.48 | S621: 0 | T621: 1.74
Q622: 4.03 | R622: 0 | S622: 13.52 | T622: 1.42
Q623: 3.09 | R623: 8.89 | S623: 0 | T623: 1.37
Q624: 2.38 | R624: -,-- | S624: 7.29 | T624: 1.06
Q625: 4.93 | T625: 1.74
Q626: 4.03 | T626: 1.42
Q627: 3.09 | T627: 1.37
Q628: 2.38 | T628: 1.06
T629: 1.74
T630: 1.42
T631: 1.37
T632: 1.06
Q633: 4.93 | T633: 1.74
Q634: 4.03 | T634: 1.42
Q635: 3.09 | T635: 1.37
Q636: 2.38 | T636: 1.06
Q637: 5.49 | R637: 38.56 | S637: 0 | T637: 1.74
Q638: 4.49 | R638: 0 | S638: 15.77 | T638: 1.42
Q639: 3.99 | R639: 0 | S639: 14.01 | T639: 1.26
Q640: 3.49 | R640: 10.83 | S640: 0 | T640: 1.37
Q641: 2.69 | R641: 0 | S641: 9.53 | T641: 1.06
Q642: 2.53 | R642: 0 | S642: 8.95 | T642: 0.99
R643: 38.56 | S643: 0 | T643: 1.74
R644: 0 | S644: 15.77 | T644: 1.42
R645: 10.83 | S645: 0 | T645: 1.37
R646: 0 | S646: 9.53 | T646: 1.06
Q647: 5.49 | R647: 38.56 | S647: 0 | T647: 1.74
Q648: 4.49 | R648: 0 | S648: 15.77 | T648: 1.42
Q649: 3.49 | R649: 10.83 | S649: 0 | T649: 1.37
Q650: 2.69 | R650: 0 | S650: 9.53 | T650: 1.06
Q651: 5.49 | T651: 1.74
Q652: 4.49 | T652: 1.42
Q653: 3.49 | T653: 1.37
Q654: 2.69 | T654: 1.06
T655: 1.74
T656: 1.42
T657: 1.37
T658: 1.06
Q659: 5.49 | T659: 1.74
Q660: 4.49 | T660: 1.42
Q661: 3.49 | T661: 1.37
Q662: 2.69 | T662: 1.06
